fUSD/lending_fUSD_20250623
["ID","MTS","AMOUNT","RATE_DAILY","PERIOD"]
[367076909,1750650651745,-1877.23,0.00032876,7]
[367076910,1750650651754,-490.0,0.00032876,7]
[367076911,1750650651763,-490.0,0.00032876,7]
[367076912,1750650651773,-490.0,0.00032876,7]
[367076913,1750650651784,-1658.54,0.00032876,7]
[367076914,1750650651794,-346.87452426,0.00032876,7]
[367076915,1750650651803,-490.0,0.00032876,7]
[367076916,1750650651813,-490.0,0.00032876,7]
[367076917,1750650651823,-2866.8,0.00032876,7]
[367076918,1750650651832,-490.0,0.00032876,7]
[367076919,1750650651842,-490.0,0.00032876,7]
[367076920,1750650651851,-1004.66876006,0.00032876,7]
[367076921,1750650651860,-3287.34,0.00032876,7]
[367076922,1750650651870,-490.0,0.00032876,7]
[367076923,1750650651880,-490.47123976,0.00032876,7]
[367076924,1750650651890,-490.0,0.00032876,5]
[367076925,1750650651900,-22403.2978985,0.00032883,2]
[367076926,1750650651910,-525.0,0.00032892,11]
[367076927,1750650651920,-150.0,0.00032893,2]
[367076928,1750650651930,-500.0,0.00032893,2]
[367076929,1750650651939,-159.3267973,0.00032893,2]
[367076930,1750650651949,-500.0,0.00032893,2]
[367076931,1750650651958,-500.0,0.00032893,2]
[367076932,1750650651967,-500.0,0.00032893,2]
[367076933,1750650651977,-196.12106549,0.00032893,2]
[367076934,1750650651986,-1100.0,0.000329,12]
[367076935,1750650651996,-3260.8,0.000329,4]
[367076936,1750650652007,-165.92,0.00032904,30]
[367076937,1750650652017,-525.0,0.00032919,11]
[367076938,1750650652027,-150.0,0.00032921,2]
[367076939,1750650652037,-500.0,0.00032921,2]
[367076940,1750650652048,-500.0,0.00032921,2]
[367076941,1750650652058,-328.15329194,0.00032921,2]
[367076942,1750650652067,-500.0,0.00032921,2]
[367076943,1750650652077,-2720.15683182,0.00032935,2]
[367076944,1750650652086,-525.0,0.00032947,11]
[367076945,1750650652096,-150.0,0.00032948,2]
[367076946,1750650652105,-221.75958737,0.00032948,2]
[367076947,1750650652115,-500.0,0.00032948,2]
[367076948,1750650652124,-500.0,0.00032948,2]
[367076949,1750650652133,-301.9,0.00032958,2]
[367076950,1750650652143,-525.0,0.00032974,11]
[367076951,1750650652152,-150.0,0.00032976,2]
[367076952,1750650652162,-500.0,0.00032976,2]
[367076953,1750650652171,-500.0,0.00032976,2]
[367076954,1750650652181,-5000.0,0.00033,15]
[367076955,1750650652190,-525.0,0.00033001,11]
[367076956,1750650652200,-250.0,0.00033003,2]
[367076957,1750650652210,-500.0,0.00033003,2]
[367076958,1750650652219,-500.0,0.00033003,2]
[367076959,1750650652228,-290.52520753,0.00033003,15]
[367076960,1750650652238,-525.0,0.00033029,11]
[367076961,1750650652247,-500.0,0.0003303,2]
[367076962,1750650652256,-164.59,0.00033035,120]
[367076963,1750650652266,-279.81,0.00033035,120]
[367076964,1750650652281,-500.0,0.00033054,2]
[367076965,1750650652291,-67209.8936955,0.00033055,2]
[367076966,1750650652300,-77564.735259,0.00033055,2]
[367076967,1750650652310,-390.27234186,0.00033055,7]
[367076968,1750650652321,-500.0,0.00033055,7]
[367076969,1750650652331,-151.0,0.00033055,7]
[367076970,1750650652340,-151.0,0.00033055,7]
[367076971,1750650652352,-152.513498,0.00033055,7]
[367076972,1750650652362,-155.495473,0.00033055,7]
[367076973,1750650652371,-422.467936,0.00033055,7]
[367076974,1750650652380,-172.48899038,0.00033055,7]
[367076975,1750650652389,-151.0,0.00033056,7]
[367076976,1750650652399,-151.0,0.00033056,7]
[367076977,1750650652408,-525.0,0.00033056,11]
[367076978,1750650652417,-500.0,0.00033058,2]
[367076979,1750650652427,-500.0,0.00033064,2]
[367076980,1750650652436,-695.49,0.00033064,7]
[367076981,1750650652445,-300.0,0.00033065,10]
[367076982,1750650652455,-155.2,0.00033065,2]
[367076983,1750650652465,-490.0,0.00033065,7]
[367076984,1750650652476,-490.0,0.00033065,7]
[367076985,1750650652485,-636.16,0.00033065,7]
[367076986,1750650652496,-490.0,0.00033065,7]
[367076987,1750650652506,-490.0,0.00033065,7]
[367076988,1750650652515,-490.0,0.00033065,7]
[367076989,1750650652525,-490.0,0.00033065,7]
[367076990,1750650652535,-490.0,0.00033065,7]
[367076991,1750650652544,-1094.62,0.00033065,7]
[367076992,1750650652553,-490.0,0.00033065,7]
[367076993,1750650652562,-490.0,0.00033065,7]
[367076994,1750650652572,-640.98,0.00033065,7]
[367076995,1750650652581,-490.0,0.00033065,7]
[367076996,1750650652590,-292.50921,0.00033065,7]
[367076997,1750650652599,-151.0,0.00033065,7]
[367076998,1750650652608,-193.27038,0.00033065,7]
[367076999,1750650652618,-1920.74,0.00033065,7]
[367077000,1750650652627,-3960.78,0.00033065,7]
[367077001,1750650652636,-3305.09,0.00033065,7]
[367077002,1750650652655,-3463.69,0.00033065,7]
[367077003,1750650652665,-2005.36,0.00033065,7]
[367077004,1750650652674,-1488.24,0.00033065,7]
[367077005,1750650652683,-738.3,0.00033065,7]
[367077006,1750650652693,-1822.1,0.00033065,7]
[367077007,1750650652702,-1104.0,0.00033065,7]
[367077008,1750650652711,-3180.34,0.00033065,7]
[367077009,1750650652720,-2032.35,0.00033065,7]
[367077010,1750650652729,-4619.36,0.00033065,7]
[367077011,1750650652738,-1296.77,0.00033065,7]
[367077012,1750650652747,-1661.3,0.00033065,7]
[367077013,1750650652756,-500.0,0.00033065,7]
[367077014,1750650652765,-1574.56,0.00033065,7]
[367077015,1750650652775,-3227.68,0.00033065,7]
[367077016,1750650652784,-1113.26,0.00033065,7]
[367077017,1750650652793,-1719.27,0.00033065,7]
[367077018,1750650652802,-622.34135662,0.00033065,7]
[367077019,1750650652811,-5326.4,0.00033065,7]
[367077020,1750650652821,-1803.37,0.00033065,7]
[367077021,1750650652830,-33402.42,0.00033065,7]
[367077022,1750650652839,-5616.68,0.00033065,7]
[367077023,1750650652850,-3531.07,0.00033065,7]
[367077024,1750650652860,-2050.7,0.00033065,7]
[367077025,1750650652869,-2313.43,0.00033065,7]
[367077026,1750650652879,-5306.78,0.00033065,7]
[367077027,1750650652888,-3346.92,0.00033065,7]
[367077028,1750650652898,-3523.61,0.00033065,7]
[367077029,1750650652907,-1759.69,0.00033065,7]
[367077030,1750650652917,-2254.6,0.00033065,7]
[367077031,1750650652926,-3589.58,0.00033065,7]
[367077032,1750650652935,-7472.11,0.00033065,7]
[367077033,1750650652945,-2089.6,0.00033065,7]
[367077034,1750650652954,-1358.21,0.00033065,7]
[367077035,1750650652964,-2812.38,0.00033065,7]
[367077036,1750650652973,-490.0,0.00033065,7]
[367077037,1750650652983,-901.29,0.00033065,7]
[367077038,1750650652992,-2465.54,0.00033065,7]
[367077039,1750650653003,-490.0,0.00033065,7]
[367077040,1750650653012,-490.0,0.00033065,7]
[367077041,1750650653022,-8528.01,0.00033065,7]
[367077042,1750650653031,-6437.88,0.00033065,7]
[367077043,1750650653040,-500.0,0.00033065,2]
[367077044,1750650653049,-2328.53,0.00033065,7]
[367077045,1750650653060,-10025.28,0.00033065,7]
[367077046,1750650653069,-5939.24,0.00033065,7]
[367077047,1750650653079,-490.0,0.00033065,7]
[367077048,1750650653089,-22403.2978985,0.00033065,2]
[367077049,1750650653098,-44806.595797,0.00033066,2]
[367077050,1750650653108,-193911.838147,0.00033066,2]
[367077051,1750650653117,-151.0,0.00033066,7]
[367077052,1750650653126,-154.757688,0.00033066,7]
[367077053,1750650653136,-151.0,0.00033066,7]
[367077054,1750650653145,-151.0,0.00033066,7]
[367077055,1750650653155,-505.10101235,0.00033068,7]
[367077056,1750650653165,-502.15378253,0.00033073,5]
[367077057,1750650653175,-695.49,0.00033074,7]
[367077058,1750650653185,-300.0,0.00033075,10]
[367077059,1750650653195,-500.0,0.00033075,7]
[367077060,1750650653204,-150.0,0.00033075,3]
[367077061,1750650653214,-500.0,0.00033075,2]
[367077062,1750650653224,-695.49,0.00033075,7]
[367077063,1750650653234,-242760.91486882,0.00033076,2]
[367077064,1750650653244,-490.0,0.00033076,7]
[367077065,1750650653254,-210.0,0.00033076,7]
[367077066,1750650653264,-490.0,0.00033076,7]
[367077067,1750650653276,-490.0,0.00033076,7]
[367077068,1750650653286,-490.0,0.00033076,7]
[367077069,1750650653295,-490.0,0.00033076,7]
[367077070,1750650653305,-490.0,0.00033076,7]
[367077071,1750650653315,-229.66029,0.00033076,7]
[367077072,1750650653326,-151.0,0.00033076,7]
[367077073,1750650653335,-196.101713,0.00033076,7]
[367077074,1750650653345,-2753.93,0.00033076,7]
[367077075,1750650653357,-1826.2,0.00033076,7]
[367077076,1750650653368,-2723.37,0.00033076,7]
[367077077,1750650653377,-4674.5,0.00033076,7]
[367077078,1750650653387,-8817.26,0.00033076,7]
[367077079,1750650653396,-5933.08,0.00033076,7]
[367077080,1750650653406,-1942.4,0.00033076,7]
[367077081,1750650653415,-15763.07,0.00033076,7]
[367077082,1750650653425,-6892.71,0.00033076,7]
[367077083,1750650653434,-1909.63,0.00033076,7]
[367077084,1750650653445,-9983.17,0.00033076,7]
[367077085,1750650653454,-1970.79,0.00033076,7]
[367077086,1750650653464,-2050.12,0.00033076,7]
[367077087,1750650653473,-1477.53,0.00033076,7]
[367077088,1750650653483,-1831.64,0.00033076,7]
[367077089,1750650653493,-1984.15,0.00033076,7]
[367077090,1750650653503,-3124.09,0.00033076,7]
[367077091,1750650653512,-1982.24,0.00033076,7]
[367077092,1750650653522,-5581.72,0.00033076,7]
[367077093,1750650653532,-1225.29,0.00033076,7]
[367077094,1750650653542,-2172.01,0.00033076,7]
[367077095,1750650653552,-7426.49,0.00033076,7]
[367077096,1750650653562,-18183.46,0.00033076,7]
[367077097,1750650653571,-1329.63,0.00033076,7]
[367077098,1750650653581,-3323.77,0.00033076,7]
[367077099,1750650653592,-151.0,0.00033077,7]
[367077100,1750650653601,-151.0,0.00033077,7]
[367077101,1750650653612,-219.810334,0.00033077,7]
[367077102,1750650653622,-151.0,0.00033078,7]
[367077103,1750650653632,-151.0,0.00033078,7]
[367077104,1750650653642,-151.0,0.00033078,7]
[367077105,1750650653652,-151.0,0.00033078,7]
[367077106,1750650653662,-151.0,0.00033078,7]
[367077107,1750650653672,-294.44846,0.00033078,7]
[367077108,1750650653682,-500.0,0.00033078,14]
[367077109,1750650653691,-963.0,0.00033078,5]
[367077110,1750650653701,-525.0,0.00033084,11]
[367077111,1750650653712,-500.0,0.00033085,2]
[367077112,1750650653722,-500.0,0.00033099,7]
[367077113,1750650653731,-13403.72,0.000331,14]
[367077114,1750650653743,-52792.79,0.000331,14]
[367077115,1750650653752,-2720.15683182,0.00033105,2]
[367077116,1750650653762,-525.0,0.00033111,11]
[367077117,1750650653772,-212.69532956,0.00033113,2]
[367077118,1750650653783,-500.0,0.00033124,5]
[367077119,1750650653793,-233.58160505,0.00033124,5]
[367077120,1750650653804,-500.0,0.00033138,2]
[367077121,1750650653815,-525.0,0.00033138,11]
[367077122,1750650653825,-19391.1838147,0.00033139,2]
[367077123,1750650653835,-5000.0,0.0003314,2]
[367077124,1750650653846,-500.0,0.0003314,7]
[367077125,1750650653856,-77564.735259,0.0003314,2]
[367077126,1750650653866,-443.14810576,0.00033146,2]
[367077127,1750650653876,-311.89544564,0.00033149,2]
[367077128,1750650653886,-300.0,0.00033149,10]
[367077129,1750650653896,-300.0,0.00033149,10]
[367077130,1750650653906,-666.0,0.00033149,10]
[367077131,1750650653916,-500.0,0.00033149,7]
[367077132,1750650653926,-500.0,0.00033149,2]
[367077133,1750650653936,-500.0,0.00033149,2]
[367077134,1750650653946,-500.0,0.00033149,2]
[367077135,1750650653955,-695.49,0.00033149,7]
[367077136,1750650653965,-695.49,0.00033149,7]
[367077137,1750650653975,-490.0,0.0003315,7]
[367077138,1750650653985,-574.60761465,0.0003315,7]
[367077139,1750650653995,-668.62,0.0003315,7]
[367077140,1750650654006,-640.76,0.0003315,7]
[367077141,1750650654016,-490.0,0.0003315,7]
[367077142,1750650654026,-490.0,0.0003315,7]
[367077143,1750650654037,-490.0,0.0003315,7]
[367077144,1750650654047,-500.69898662,0.0003315,7]
[367077145,1750650654057,-490.0,0.0003315,7]
[367077146,1750650654068,-490.0,0.0003315,7]
[367077147,1750650654078,-490.0,0.0003315,7]
[367077148,1750650654088,-490.0,0.0003315,7]
[367077149,1750650654098,-1024.47,0.0003315,7]
[367077150,1750650654108,-490.0,0.0003315,7]
[367077151,1750650654119,-841.98,0.0003315,7]
[367077152,1750650654128,-490.0,0.0003315,7]
[367077153,1750650654138,-490.0,0.0003315,7]
[367077154,1750650654149,-754.53,0.0003315,7]
[367077155,1750650654159,-490.0,0.0003315,7]
[367077156,1750650654169,-490.0,0.0003315,7]
[367077157,1750650654178,-490.0,0.0003315,7]
[367077158,1750650654188,-557.34,0.0003315,7]
[367077159,1750650654198,-490.0,0.0003315,7]
[367077160,1750650654208,-490.0,0.0003315,7]
[367077161,1750650654218,-490.0,0.0003315,7]
[367077162,1750650654228,-490.0,0.0003315,7]
[367077163,1750650654238,-610.19352075,0.0003315,7]
[367077164,1750650654249,-490.0,0.0003315,7]
[367077165,1750650654259,-633.81,0.0003315,7]
[367077166,1750650654269,-773.69,0.0003315,7]
[367077167,1750650654283,-490.0,0.0003315,7]
[367077168,1750650654293,-490.0,0.0003315,7]
[367077169,1750650654303,-925.36,0.0003315,7]
[367077170,1750650654315,-490.0,0.0003315,7]
[367077171,1750650654325,-490.0,0.0003315,7]
[367077172,1750650654336,-490.0,0.0003315,7]
[367077173,1750650654347,-1120.94,0.0003315,7]
[367077174,1750650654357,-490.0,0.0003315,7]
[367077175,1750650654367,-490.0,0.0003315,7]
[367077176,1750650654377,-490.0,0.0003315,7]
[367077177,1750650654387,-490.0,0.0003315,7]
[367077178,1750650654396,-490.0,0.0003315,7]
[367077179,1750650654407,-490.0,0.0003315,7]
[367077180,1750650654417,-490.0,0.0003315,7]
[367077181,1750650654427,-490.0,0.0003315,7]
[367077182,1750650654437,-577.34,0.0003315,7]
[367077183,1750650654447,-490.0,0.0003315,7]
[367077184,1750650654457,-490.0,0.0003315,7]
[367077185,1750650654467,-490.0,0.0003315,7]
[367077186,1750650654477,-203.47884326,0.0003315,7]
[367077187,1750650654487,-490.0,0.0003315,7]
[367077188,1750650654498,-490.0,0.0003315,7]
[367077189,1750650654509,-297.78112939,0.0003315,7]
[367077190,1750650654519,-490.0,0.0003315,7]
[367077191,1750650654530,-490.0,0.0003315,7]
[367077192,1750650654540,-490.0,0.0003315,7]
[367077193,1750650654550,-490.0,0.0003315,7]
[367077194,1750650654561,-762.53,0.0003315,7]
[367077195,1750650654571,-490.0,0.0003315,7]
[367077196,1750650654582,-490.0,0.0003315,7]
[367077197,1750650654592,-490.0,0.0003315,7]
[367077198,1750650654602,-490.0,0.0003315,7]
[367077199,1750650654611,-490.0,0.0003315,7]
[367077200,1750650654622,-490.0,0.0003315,7]
[367077201,1750650654632,-495.87290419,0.0003315,7]
[367077202,1750650654642,-490.0,0.0003315,7]
[367077203,1750650654652,-490.0,0.0003315,7]
[367077204,1750650654663,-490.0,0.0003315,7]
[367077205,1750650654673,-490.0,0.0003315,7]
[367077206,1750650654683,-490.0,0.0003315,7]
[367077207,1750650654693,-490.0,0.0003315,7]
[367077208,1750650654703,-490.0,0.0003315,7]
[367077209,1750650654713,-352.53514813,0.0003315,7]
[367077210,1750650654723,-490.0,0.0003315,7]
[367077211,1750650654733,-535.43,0.0003315,7]
[367077212,1750650654743,-858.37,0.0003315,7]
[367077213,1750650654752,-490.0,0.0003315,7]
[367077214,1750650654762,-490.0,0.0003315,7]
[367077215,1750650654773,-481.79954038,0.0003315,7]
[367077216,1750650654783,-490.0,0.0003315,7]
[367077217,1750650654793,-818.54,0.0003315,7]
[367077218,1750650654804,-490.0,0.0003315,7]
[367077219,1750650654815,-699.81,0.0003315,7]
[367077220,1750650654826,-490.0,0.0003315,7]
[367077221,1750650654836,-809.88,0.0003315,7]
[367077222,1750650654847,-490.0,0.0003315,7]
[367077223,1750650654856,-490.0,0.0003315,7]
[367077224,1750650654867,-655.49,0.0003315,7]
[367077225,1750650654877,-490.0,0.0003315,7]
[367077226,1750650654887,-490.0,0.0003315,7]
[367077227,1750650654897,-490.0,0.0003315,7]
[367077228,1750650654908,-780.03,0.0003315,7]
[367077229,1750650654918,-490.0,0.0003315,7]
[367077230,1750650654928,-490.0,0.0003315,7]
[367077231,1750650654939,-954.64,0.0003315,7]
[367077232,1750650654950,-490.0,0.0003315,7]
[367077233,1750650654960,-874.66,0.0003315,7]
[367077234,1750650654970,-490.0,0.0003315,7]
[367077235,1750650654981,-490.0,0.0003315,7]
[367077236,1750650654991,-490.0,0.0003315,7]
[367077237,1750650655001,-153.91105767,0.0003315,7]
[367077238,1750650655012,-389.37907026,0.0003315,7]
[367077239,1750650655022,-490.0,0.0003315,7]
[367077240,1750650655032,-490.0,0.0003315,7]
[367077241,1750650655041,-607.31680264,0.0003315,7]
[367077242,1750650655051,-1253.62,0.0003315,7]
[367077243,1750650655062,-490.0,0.0003315,7]
[367077244,1750650655072,-490.0,0.0003315,7]
[367077245,1750650655082,-490.0,0.0003315,7]
[367077246,1750650655092,-493.67290412,0.0003315,7]
[367077247,1750650655104,-490.0,0.0003315,7]
[367077248,1750650655115,-490.0,0.0003315,7]
[367077249,1750650655127,-490.0,0.0003315,7]
[367077250,1750650655137,-490.0,0.0003315,7]
[367077251,1750650655147,-490.0,0.0003315,7]
[367077252,1750650655157,-1928.12,0.0003315,7]
[367077253,1750650655168,-490.0,0.0003315,7]
[367077254,1750650655179,-490.0,0.0003315,7]
[367077255,1750650655188,-226.09127831,0.0003315,7]
[367077256,1750650655199,-490.0,0.0003315,7]
[367077257,1750650655210,-356.1915451,0.0003315,7]
[367077258,1750650655220,-490.0,0.0003315,7]
[367077259,1750650655230,-981.66,0.0003315,7]
[367077260,1750650655241,-490.0,0.0003315,7]
[367077261,1750650655251,-490.0,0.0003315,7]
[367077262,1750650655261,-664.57,0.0003315,7]
[367077263,1750650655272,-490.0,0.0003315,7]
[367077264,1750650655284,-895.17,0.0003315,7]
[367077265,1750650655295,-490.0,0.0003315,7]
[367077266,1750650655305,-490.0,0.0003315,7]
[367077267,1750650655315,-490.0,0.0003315,7]
[367077268,1750650655326,-1616.34,0.0003315,7]
[367077269,1750650655336,-490.0,0.0003315,2]
[367077270,1750650655346,-490.0,0.0003315,7]
[367077271,1750650655357,-645.85,0.0003315,7]
[367077272,1750650655367,-1550.76,0.0003315,7]
[367077273,1750650655376,-490.0,0.0003315,2]
[367077274,1750650655386,-490.0,0.0003315,7]
[367077275,1750650655396,-490.0,0.0003315,7]
[367077276,1750650655406,-490.0,0.0003315,7]
[367077277,1750650655416,-490.0,0.0003315,7]
[367077278,1750650655426,-490.0,0.0003315,7]
[367077279,1750650655436,-1014.69,0.0003315,7]
[367077280,1750650655446,-490.0,0.0003315,7]
[367077281,1750650655456,-909.17,0.0003315,7]
[367077282,1750650655466,-490.0,0.0003315,7]
[367077283,1750650655476,-490.0,0.0003315,7]
[367077284,1750650655486,-490.0,0.0003315,7]
[367077285,1750650655496,-1616.93,0.0003315,7]
[367077286,1750650655506,-490.0,0.0003315,7]
[367077287,1750650655516,-1040.68,0.0003315,7]
[367077288,1750650655527,-490.0,0.0003315,7]
[367077289,1750650655536,-1164.3,0.0003315,7]
[367077290,1750650655546,-1471.09,0.0003315,7]
[367077291,1750650655556,-490.0,0.0003315,7]
[367077292,1750650655569,-490.0,0.0003315,7]
[367077293,1750650655579,-490.0,0.0003315,7]
[367077294,1750650655589,-490.0,0.0003315,7]
[367077295,1750650655600,-490.0,0.0003315,7]
[367077296,1750650655609,-490.0,0.0003315,7]
[367077297,1750650655619,-1896.83,0.0003315,7]
[367077298,1750650655629,-490.0,0.0003315,7]
[367077299,1750650655639,-919.16,0.0003315,7]
[367077300,1750650655649,-490.0,0.0003315,7]
[367077301,1750650655659,-490.0,0.0003315,7]
[367077302,1750650655669,-490.0,0.0003315,7]
[367077303,1750650655679,-490.0,0.0003315,7]
[367077304,1750650655690,-1000.0,0.0003315,7]
[367077305,1750650655700,-689.79,0.0003315,7]
[367077306,1750650655710,-490.0,0.0003315,7]
[367077307,1750650655720,-490.0,0.0003315,7]
[367077308,1750650655731,-490.0,0.0003315,7]
[367077309,1750650655741,-214.18512239,0.0003315,7]
[367077310,1750650655751,-490.0,0.0003315,7]
[367077311,1750650655762,-490.0,0.0003315,7]
[367077312,1750650655772,-490.0,0.0003315,7]
[367077313,1750650655783,-490.0,0.0003315,7]
[367077314,1750650655792,-490.0,0.0003315,7]
[367077315,1750650655802,-1343.76,0.0003315,7]
[367077316,1750650655812,-490.0,0.0003315,7]
[367077317,1750650655822,-1280.59,0.0003315,7]
[367077318,1750650655832,-1746.38,0.0003315,7]
[367077319,1750650655842,-490.0,0.0003315,7]
[367077320,1750650655852,-490.0,0.0003315,7]
[367077321,1750650655863,-490.0,0.0003315,7]
[367077322,1750650655873,-2875.33,0.0003315,7]
[367077323,1750650655883,-1071.63,0.0003315,7]
[367077324,1750650655893,-490.0,0.0003315,7]
[367077325,1750650655904,-966.31,0.0003315,7]
[367077326,1750650655914,-1191.03,0.0003315,7]
[367077327,1750650655924,-1739.69,0.0003315,7]
[367077328,1750650655935,-824.62,0.0003315,7]
[367077329,1750650655945,-922.11,0.0003315,7]
[367077330,1750650655955,-490.0,0.0003315,7]
[367077331,1750650655965,-2110.97,0.0003315,7]
[367077332,1750650655976,-1112.44,0.0003315,7]
[367077333,1750650655986,-490.0,0.0003315,7]
[367077334,1750650655996,-992.28,0.0003315,7]
[367077335,1750650656007,-1278.57,0.0003315,7]
[367077336,1750650656018,-1530.28,0.0003315,7]
[367077337,1750650656327,-558.85,0.0003315,7]
[367077338,1750650656343,-490.0,0.0003315,7]
[367077339,1750650656353,-601.57,0.0003315,7]
[367077340,1750650656364,-490.0,0.0003315,7]
[367077341,1750650656374,-1963.59,0.0003315,7]
[367077342,1750650656383,-1320.22,0.0003315,7]
[367077343,1750650656393,-1451.292322,0.0003315,7]
[367077344,1750650656402,-1461.39,0.0003315,7]
[367077345,1750650656411,-490.0,0.0003315,7]
[367077346,1750650656421,-566.18,0.0003315,7]
[367077347,1750650656430,-490.0,0.0003315,7]
[367077348,1750650656440,-490.0,0.0003315,7]
[367077349,1750650656449,-490.0,0.0003315,7]
[367077350,1750650656458,-490.0,0.0003315,7]
[367077351,1750650656468,-167.76132446,0.0003315,2]
[367077352,1750650656477,-1106.64,0.0003315,7]
[367077353,1750650656487,-490.0,0.0003315,7]
[367077354,1750650656496,-568.58,0.0003315,7]
[367077355,1750650656506,-6598.08748,0.0003315,7]
[367077356,1750650656516,-490.0,0.0003315,7]
[367077357,1750650656525,-1037.13,0.0003315,7]
[367077358,1750650656535,-1007.88,0.0003315,7]
[367077359,1750650656545,-490.0,0.0003315,7]
[367077360,1750650656555,-490.0,0.0003315,7]
[367077361,1750650656564,-490.0,0.0003315,7]
[367077362,1750650656573,-490.0,0.0003315,7]
[367077363,1750650656583,-490.0,0.0003315,7]
[367077364,1750650656593,-490.0,0.0003315,7]
[367077365,1750650656602,-490.0,0.0003315,7]
[367077366,1750650656612,-1187.12,0.0003315,7]
[367077367,1750650656621,-490.0,0.0003315,7]
[367077368,1750650656631,-490.0,0.0003315,7]
[367077369,1750650656641,-3131.331553,0.0003315,7]
[367077370,1750650656650,-3613.13,0.0003315,2]
[367077371,1750650656660,-490.0,0.0003315,7]
[367077372,1750650656670,-490.0,0.0003315,7]
[367077373,1750650656679,-283.61802043,0.0003315,7]
[367077374,1750650656689,-615.99,0.0003315,7]
[367077375,1750650656698,-490.0,0.0003315,7]
[367077376,1750650656708,-632.82,0.0003315,7]
[367077377,1750650656718,-945.58,0.0003315,7]
[367077378,1750650656727,-490.0,0.0003315,7]
[367077379,1750650656737,-490.0,0.0003315,7]
[367077380,1750650656746,-736.45,0.0003315,7]
[367077381,1750650656756,-1376.65,0.0003315,7]
[367077382,1750650656766,-490.0,0.0003315,7]
[367077383,1750650656775,-1545.19,0.0003315,7]
[367077384,1750650656785,-490.0,0.0003315,7]
[367077385,1750650656794,-490.0,0.0003315,7]
[367077386,1750650656804,-490.0,0.0003315,7]
[367077387,1750650656813,-490.0,0.0003315,7]
[367077388,1750650656822,-695.89,0.0003315,7]
[367077389,1750650656831,-490.0,0.0003315,7]
[367077390,1750650656841,-490.0,0.0003315,7]
[367077391,1750650656850,-490.0,0.0003315,7]
[367077392,1750650656860,-348.05324814,0.0003315,7]
[367077393,1750650656869,-1264.35,0.0003315,7]
[367077394,1750650656879,-490.0,0.0003315,7]
[367077395,1750650656888,-215.80457685,0.0003315,7]
[367077396,1750650656898,-992.16,0.0003315,7]
[367077397,1750650656907,-490.0,0.0003315,7]
[367077398,1750650656917,-490.0,0.0003315,7]
[367077399,1750650656927,-645.21,0.0003315,7]
[367077400,1750650656936,-490.0,0.0003315,7]
[367077401,1750650656946,-490.0,0.0003315,7]
[367077402,1750650656956,-490.0,0.0003315,7]
[367077403,1750650656965,-490.0,0.0003315,7]
[367077404,1750650656975,-490.0,0.0003315,7]
[367077405,1750650656984,-474.26357857,0.0003315,7]
[367077406,1750650656994,-1133.14,0.0003315,7]
[367077407,1750650657003,-212.30721723,0.0003315,7]
[367077408,1750650657013,-490.0,0.0003315,7]